[Event "Charlotte Open 2020"]
[Site "Charlotte"]
[Date "2020.01.04"]
[Round "6.14"]
[White "Petesch, Gabriel"]
[Black "Ynojosa Aponte, Felix Jose"]
[Result "1-0"]
[ECO "D46"]
[WhiteElo "2302"]
[BlackElo "2403"]
[Annotator "RC"]
[PlyCount "109"]
[EventDate "2020.01.02"]
[EventType "swiss"]
[EventCountry "USA"]
[SourceTitle "playchess.com"]
[Source "ChessBase"]
[SourceQuality "1"]
[TimeControl "6000+30"]

1. d4 {[%emt 1:40:30]} Nf6 {[%emt 1:40:30]} 2. Nf3 {[%emt 0:00:30]} d5 {[%emt 0:00:30]} 3. c4 {[%emt 0:00:30]} e6 {[%emt 0:00:30]} 4. Nc3 {[%emt 0:00:30]} c6 {[%emt 0:00:30]} 5. e3 {[%emt 0:00:30]} Bd6 {[%emt 0:00:30]} 6. Qc2 {[%emt 0:00:30]} Nbd7 {[%emt 0:00:30]} 7. Be2 {[%emt 0:00:30]} dxc4 {[%emt 0:00:30]} 8. Bxc4 {[%emt 0:00:30]} b5 {[%emt 0:00:30]} 9. Be2 {[%emt 0:00:30]} Bb7 {[%emt 0:00:30]} 10. O-O {[%emt 0:00:30]} Rc8 {[%emt 0:00:30]} 11. e4 {[%emt 0:00:30]} e5 {[%emt 0:00:30]} 12. Bg5 {[%emt 0:00:30]} h6 {[%emt 0:00:30]} 13. Bh4 {[%emt 0:00:30]} a6 {[%emt 0:00:30]} 14. Rad1 {[%emt 0:00:30]} Qc7 {[%emt 0:00:30]} 15. dxe5 {[%emt 0:00:30]} Nxe5 {[%emt 0:00:30]} 16. Nd4 {[%emt 0:00:30]} Ng6 {[%emt 0:00:30]} 17. Bxf6 {[%emt 0:00:30]} gxf6 {[%emt 0:00:30]} 18. g3 {[%emt 0:00:30]} Ne7 {[%emt 0:00:30]} 19. Bh5 {[%emt 0:00:30]} O-O {[%emt 0:00:30]} 20. Qd2 {[%emt 0:00:30]} b4 {[%emt 0:00:30]} 21. Nce2 {[%emt 0:00:30]} Rcd8 {[%emt 0:00:30]} 22. Qxh6 {[%emt 0:00:30]} c5 {[%emt 0:00:30]} 23. Bxf7+ {[%emt 0:00:30]} Kxf7 {[%emt 0:00:30]} 24. Qh7+ {[%emt 0:00:30]} Ke8 {[%emt 0:00:30]} 25. Ne6 {[%emt 0:00:30]} Qc6 {[%emt 0:00:30]} 26. Nxf8 {[%emt 0:00:30]} Kxf8 {[%emt 0:00:30]} 27. Nf4 {[%emt 0:00:30]} Rc8 {[%emt 0:00:30]} 28. Ne6+ {[%emt 0:00:30]} Ke8 {[%emt 0:00:30]} 29. Rd2 {[%emt 0:00:30]} c4 {[%emt 0:00:30]} 30. Rfd1 {[%emt 0:00:30]} Qxe4 {[%emt 0:00:30]} 31. Qxe4 {[%emt 0:00:30]} Bxe4 {[%emt 0:00:30]} 32. Rxd6 {[%emt 0:00:30]} Nf5 {[%emt 0:00:30]} 33. Ng7+ {[%emt 0:00:30]} Nxg7 {[%emt 0:00:30]} 34. Re1 {[%emt 0:00:30]} f5 {[%emt 0:00:30]} 35. f3 {[%emt 0:00:30]} c3 {[%emt 0:00:30]} 36. bxc3 {[%emt 0:00:30]} Ke7 {[%emt 0:00:30]} 37. Rdd1 {[%emt 0:00:30]} bxc3 {[%emt 0:00:30]} 38. fxe4 {[%emt 0:00:30]} f4 {[%emt 0:00:30]} 39. gxf4 {[%emt 0:00:30]} Ne6 {[%emt 0:00:30]} 40. f5 {[%emt 0:00:30]} c2 {[%emt 0:00:30]} 41. Rc1 {[%emt 0:00:30]} Nd4 {[%emt 0:00:30]} 42. Kf2 {[%emt 0:00:30]} Kf6 {[%emt 0:00:30]} 43. e5+ {[%emt 0:00:30]} Kxf5 {[%emt 0:00:30]} 44. e6 {[%emt 0:00:30]} Nxe6 {[%emt 0:00:30]} 45. Ke3 {[%emt 0:00:30]} Rc3+ {[%emt 0:00:30]} 46. Kd2 {[%emt 0:00:30]} Ra3 {[%emt 0:00:30]} 47. Rxc2 {[%emt 0:00:30]} Nd4 {[%emt 0:00:30]} 48. Rf1+ {[%emt 0:00:30]} Ke4 {[%emt 0:00:30]} 49. Rb2 {[%emt 0:00:30]} Rh3 {[%emt 0:00:30]} 50. Kc1 {[%emt 0:00:30]} Kd3 {[%emt 0:00:30]} 51. Kb1 {[%emt 0:00:30]} Nb5 {[%emt 0:00:30]} 52. Rc1 {[%emt 0:00:30]} Rh6 {[%emt 0:00:30]} 53. Rb3+ {[%emt 0:00:30]} Kd4 {[%emt 0:00:30]} 54. a4 Nd6 {[%emt 0:00:30]} 55. Rb6 {[%emt 0:01:00]} 1-0

[Event "Charlotte Open 2020"]
[Site "Charlotte"]
[Date "2020.01.04"]
[Round "6.16"]
[White "Mulyar, Michael"]
[Black "Venkat, Raghav"]
[Result "1-0"]
[ECO "D64"]
[WhiteElo "2380"]
[BlackElo "2141"]
[Annotator "ChessBase"]
[PlyCount "121"]
[EventDate "2020.01.02"]
[EventType "swiss"]
[EventCountry "USA"]
[SourceTitle "playchess.com"]
[Source "ChessBase"]
[SourceQuality "1"]
[TimeControl "6000+30"]

1. d4 {[%emt 1:40:30]} Nf6 {[%emt 1:40:30]} 2. Nf3 {[%emt 0:00:30]} d5 {[%emt 0:00:30]} 3. c4 {[%emt 0:00:30]} e6 {[%emt 0:00:30]} 4. Nc3 {[%emt 0:00:30]} Be7 {[%emt 0:00:30]} 5. Bg5 {[%emt 0:00:30]} O-O {[%emt 0:00:30]} 6. e3 {[%emt 0:00:30]} c6 {[%emt 0:00:30]} 7. Rc1 {[%emt 0:00:30]} Nbd7 {[%emt 0:00:30]} 8. Qc2 {[%emt 0:00:30]} h6 {[%emt 0:00:30]} 9. Bh4 {[%emt 0:00:30]} a6 {[%emt 0:00:30]} 10. c5 {[%emt 0:00:30]} e5 {[%emt 0:00:30]} 11. dxe5 {[%emt 0:00:30]} Ne8 {[%emt 0:00:30]} 12. Bg3 {[%emt 0:00:30]} Nxc5 {[%emt 0:00:30]} 13. Be2 {[%emt 0:00:30]} Nc7 {[%emt 0:00:30]} 14. O-O {[%emt 0:00:30]} Nb5 {[%emt 0:00:30]} 15. Rfd1 {[%emt 0:00:30]} Nxc3 {[%emt 0:00:30]} 16. bxc3 {[%emt 0:00:30]} Qa5 {[%emt 0:00:30]} 17. Nd2 {[%emt 0:00:30]} Be6 {[%emt 0:00:30]} 18. Nb3 {[%emt 0:00:30]} Nxb3 {[%emt 0:00:30]} 19. axb3 {[%emt 0:00:30]} Qb6 {[%emt 0:00:30]} 20. c4 {[%emt 0:00:30]} dxc4 {[%emt 0:00:30]} 21. Bxc4 {[%emt 0:00:30]} Bxc4 {[%emt 0:00:30]} 22. Qxc4 {[%emt 0:00:30]} Ba3 {[%emt 0:00:30]} 23. Ra1 {[%emt 0:00:30]} Qb4 {[%emt 0:00:30]} 24. Rd7 {[%emt 0:00:30]} Qxc4 {[%emt 0:00:30]} 25. bxc4 {[%emt 0:00:30]} Bb4 {[%emt 0:00:30]} 26. Rxb7 {[%emt 0:00:30]} c5 {[%emt 0:00:30]} 27. f4 {[%emt 0:00:30]} a5 {[%emt 0:00:30]} 28. Be1 {[%emt 0:00:30]} Rfb8 {[%emt 0:00:30]} 29. Rxb8+ {[%emt 0:00:30]} Rxb8 30. Bxb4 {[%emt 0:00:30]} axb4 {[%emt 0:01:00]} 31. Kf2 {[%emt 0:00:30]} b3 {[%emt 0:00:30]} 32. Ke2 {[%emt 0:00:30]} b2 {[%emt 0:00:30]} 33. Rb1 {[%emt 0:00:30]} Rb3 {[%emt 0:00:30]} 34. Kd2 {[%emt 0:00:30]} Kf8 {[%emt 0:00:30]} 35. g3 {[%emt 0:00:30]} Ke7 {[%emt 0:00:30]} 36. e4 {[%emt 0:00:30]} Ke6 {[%emt 0:00:30]} 37. Kc2 {[%emt 0:00:30]} Re3 {[%emt 0:00:30]} 38. Rxb2 {[%emt 0:00:30]} Rxe4 {[%emt 0:00:30]} 39. Kd3 {[%emt 0:00:30]} Rd4+ {[%emt 0:00:30]} 40. Kc3 {[%emt 0:00:30]} Rd1 {[%emt 0:00:30]} 41. Rb6+ {[%emt 0:00:30]} Kf5 {[%emt 0:00:30]} 42. Rb7 {[%emt 0:00:30]} Ke6 {[%emt 0:00:30]} 43. Rc7 {[%emt 0:00:30]} Rh1 44. Rxc5 {[%emt 0:00:30]} Rxh2 {[%emt 0:01:00]} 45. Rd5 {[%emt 0:00:30]} h5 {[%emt 0:00:30]} 46. Rd6+ {[%emt 0:00:30]} Ke7 {[%emt 0:00:30]} 47. c5 {[%emt 0:00:30]} h4 {[%emt 0:00:30]} 48. gxh4 {[%emt 0:00:30]} Rxh4 {[%emt 0:00:30]} 49. Rd4 {[%emt 0:00:30]} Rh1 {[%emt 0:00:30]} 50. Kc4 {[%emt 0:00:30]} Re1 {[%emt 0:00:30]} 51. c6 {[%emt 0:00:30]} g5 {[%emt 0:00:30]} 52. fxg5 {[%emt 0:00:30]} Rxe5 {[%emt 0:00:30]} 53. c7 {[%emt 0:00:30]} Re1 {[%emt 0:00:30]} 54. Kb5 {[%emt 0:00:30]} Rb1+ {[%emt 0:00:30]} 55. Kc6 {[%emt 0:00:30]} Rc1+ {[%emt 0:00:30]} 56. Kb7 {[%emt 0:00:30]} Rb1+ {[%emt 0:00:30]} 57. Kc8 {[%emt 0:00:30]} Rc1 {[%emt 0:00:30]} 58. Rb4 {[%emt 0:00:30]} Kd6 {[%emt 0:00:30]} 59. Rb6+ {[%emt 0:00:30]} Ke5 {[%emt 0:00:30]} 60. Kb8 {[%emt 0:00:30]} Kf4 {[%emt 0:00:30]} 61. Rb5 {[%emt 0:00:30]} 1-0

[Event "Charlotte Open 2020"]
[Site "Charlotte"]
[Date "2020.01.04"]
[Round "6.20"]
[White "Mahajan, Rushaan"]
[Black "Ezra Paul Chambers"]
[Result "1/2-1/2"]
[ECO "E61"]
[WhiteElo "2006"]
[BlackElo "2265"]
[Annotator "ChessBase"]
[PlyCount "50"]
[EventDate "2020.01.02"]
[EventType "swiss"]
[EventCountry "USA"]
[SourceTitle "playchess.com"]
[Source "ChessBase"]
[SourceQuality "1"]
[TimeControl "6000+30"]

1. d4 {[%emt 1:40:30]} d6 {[%emt 1:40:30]} 2. Nf3 {[%emt 0:00:30]} Nf6 {[%emt 0:00:30]} 3. c4 {[%emt 0:00:30]} Nc6 {[%emt 0:00:30]} 4. Nc3 {[%emt 0:00:30]} g6 {[%emt 0:00:30]} 5. Bg5 {[%emt 0:00:30]} Bg7 {[%emt 0:00:30]} 6. e3 {[%emt 0:00:30]} O-O {[%emt 0:00:30]} 7. h3 {[%emt 0:00:30]} Bf5 {[%emt 0:00:30]} 8. Be2 {[%emt 0:00:30]} Ne4 {[%emt 0:00:30]} 9. Nxe4 {[%emt 0:00:30]} Bxe4 {[%emt 0:00:30]} 10. O-O {[%emt 0:00:30]} Qe8 {[%emt 0:00:30]} 11. d5 {[%emt 0:00:30]} Bxf3 {[%emt 0:00:30]} 12. Bxf3 {[%emt 0:00:30]} Ne5 {[%emt 0:00:30]} 13. Be2 {[%emt 0:00:30]} Nd7 {[%emt 0:00:30]} 14. Qc2 {[%emt 0:00:30]} Nc5 {[%emt 0:00:30]} 15. Rad1 {[%emt 0:00:30]} a5 {[%emt 0:00:30]} 16. b3 {[%emt 0:00:30]} e6 {[%emt 0:00:30]} 17. dxe6 {[%emt 0:00:30]} Qxe6 {[%emt 0:00:30]} 18. Bf3 {[%emt 0:00:30]} Rfe8 {[%emt 0:00:30]} 19. a3 {[%emt 0:00:30]} Ne4 {[%emt 0:00:30]} 20. Bxe4 {[%emt 0:00:30]} Qxe4 {[%emt 0:00:30]} 21. Qxe4 {[%emt 0:00:30]} Rxe4 {[%emt 0:00:30]} 22. a4 {[%emt 0:00:30]} f5 {[%emt 0:00:30]} 23. Bf4 {[%emt 0:00:30]} b6 {[%emt 0:00:30]} 24. Rd5 {[%emt 0:00:30]} Bc3 {[%emt 0:00:30]} 25. g4 {[%emt 0:00:30]} Rf8 {[%emt 0:00:30]} 1/2-1/2

[Event "Charlotte Open 2020"]
[Site "Charlotte"]
[Date "2020.01.05"]
[Round "7.6"]
[White "Karthik Venkataraman"]
[Black "Petesch, Gabriel"]
[Result "1-0"]
[ECO "C81"]
[WhiteElo "2470"]
[BlackElo "2302"]
[Annotator "RC"]
[PlyCount "59"]
[EventDate "2020.01.02"]
[EventType "swiss"]
[EventCountry "USA"]
[SourceTitle "playchess.com"]
[Source "ChessBase"]
[SourceQuality "1"]
[TimeControl "6000+30"]

1. e4 {[%emt 0:00:00]} e5 {[%emt 0:01:13]} 2. Nf3 {[%emt 0:00:00]} Nc6 {[%emt 0:00:04]} 3. Bb5 {[%emt 0:00:00]} a6 {[%emt 0:00:14]} 4. Ba4 {[%emt 0:00:00]} Nf6 {[%emt 0:00:07]} 5. O-O {[%emt 0:00:07]} Nxe4 {[%emt 0:00:35]} 6. d4 {[%emt 0:00:06]} b5 {[%emt 0:00:05]} 7. Bb3 {[%emt 0:00:04]} d5 {[%emt 0:00:04]} 8. dxe5 {[%emt 0:00:04]} Be6 {[%emt 0:00:09]} 9. Qe2 {[%emt 0:00:08]} Nc5 {[%emt 0:03:33]} 10. Rd1 {[%emt 0:00:24]} Qd7 {[%emt 0:03:16]} 11. Nc3 {[%emt 0:08:42]} Ne7 {[%emt 0:04:19]} 12. Be3 {[%emt 0:01:17]} Na4 {[%emt 0:10:48]} 13. Bxa4 {[%emt 0:07:19]} bxa4 {[%emt 0:00:14]} 14. Bc5 {[%emt 0:00:05]} Qc6 {[%emt 0:03:24]} 15. Ba3 {[%emt 0:00:21]} Nc8 {[%emt 0:08:39]} 16. Bxf8 {[%emt 0:02:59]} Kxf8 {[%emt 0:01:39]} 17. Nd4 {[%emt 0:06:43]} Qd7 {[%emt 0:03:25]} 18. b3 {[%emt 0:00:28]} Nb6 {[%emt 0:03:07]} 19. bxa4 {[%emt 0:01:05]} Ke7 {[%emt 0:14:22]} 20. a5 {[%emt 0:02:13]} Nc4 {[%emt 0:06:17]} 21. Nf5+ {[%emt 0:00:35]} Kf8 {[%emt 0:01:19]} 22. Ne3 {[%emt 0:00:05]} Nxe3 {[%emt 0:03:07]} 23. Qxe3 {[%emt 0:00:12]} Qc6 {[%emt 0:01:19]} 24. Qd4 {[%emt 0:01:52]} Rd8 {[%emt 0:04:25]} 25. Qb4+ {[%emt 0:00:29]} Ke8 {[%emt 0:01:24]} 26. Rd4 {[%emt 0:00:37]} Qa8 {[%emt 0:01:23]} 27. Qc5 {[%emt 0:01:02]} Rb8 {[%emt 0:08:53]} 28. Rxd5 {[%emt 0:01:08]} Rd8 {[%emt 0:00:46]} 29. Rad1 {[%emt 0:02:08]} Rc8 {[%emt 0:04:04]} 30. Rd7 {[%emt 0:02:28]} 1-0

[Event "Charlotte Open 2020"]
[Site "Charlotte"]
[Date "2020.01.05"]
[Round "8.1"]
[White "Chandra, Akshat"]
[Black "Jacobson, Brandon"]
[Result "0-1"]
[ECO "A13"]
[WhiteElo "2524"]
[BlackElo "2472"]
[Annotator "ChessBase"]
[PlyCount "106"]
[EventDate "2020.01.02"]
[EventType "swiss"]
[EventCountry "USA"]
[SourceTitle "playchess.com"]
[Source "ChessBase"]
[SourceQuality "1"]
[TimeControl "6000+30"]

1. Nf3 {[%emt 0:06:42]} d5 {[%emt 0:00:00]} 2. e3 {[%emt 0:00:20]} Nf6 {[%emt 0:02:36]} 3. c4 {[%emt 0:00:25]} e6 {[%emt 0:00:06]} 4. b3 {[%emt 0:01:09]} b6 {[%emt 0:00:03]} 5. Bb2 {[%emt 0:02:13]} Bb7 {[%emt 0:00:04]} 6. cxd5 {[%emt 0:01:04]} exd5 {[%emt 0:00:03]} 7. d4 {[%emt 0:00:28]} Nbd7 {[%emt 0:00:06]} 8. Nc3 {[%emt 0:00:28]} Bd6 {[%emt 0:00:05]} 9. g3 {[%emt 0:04:02]} O-O {[%emt 0:02:47]} 10. Bg2 {[%emt 0:00:10]} Ba6 {[%emt 0:00:42]} 11. Nd2 {[%emt 0:12:20]} c5 {[%emt 0:10:52]} 12. Bf1 {[%emt 0:43:02]} Bxf1 {[%emt 0:06:07]} 13. Kxf1 {[%emt 0:00:03]} cxd4 {[%emt 0:00:06]} 14. exd4 {[%emt 0:00:39]} Bb4 {[%emt 0:01:25]} 15. Kg2 {[%emt 0:00:55]} Re8 {[%emt 0:06:56]} 16. Rc1 {[%emt 0:00:46]} Nf8 {[%emt 0:02:52]} 17. Nf3 {[%emt 0:01:41]} Bxc3 {[%emt 0:02:32]} 18. Rxc3 {[%emt 0:04:01]} Ne4 {[%emt 0:00:10]} 19. Rc2 {[%emt 0:00:38]} Rc8 {[%emt 0:10:40]} 20. Qd3 {[%emt 0:02:22]} Qd7 {[%emt 0:09:50]} 21. Rhc1 {[%emt 0:01:27]} f6 {[%emt 0:08:12]} 22. a4 {[%emt 0:07:29]} Ne6 {[%emt 0:01:03]} 23. Rxc8 {[%emt 0:01:58]} Rxc8 {[%emt 0:00:03]} 24. Qb5 {[%emt 0:05:34]} Rd8 {[%emt 0:00:09]} 25. Qxd7 {[%emt 0:02:10]} Rxd7 {[%emt 0:00:01]} 26. Rc8+ {[%emt 0:01:09]} Kf7 {[%emt 0:00:33]} 27. Kf1 {[%emt 0:00:54]} g5 {[%emt 0:04:26]} 28. h3 {[%emt 0:00:58]} h5 {[%emt 0:00:19]} 29. Rc2 {[%emt 0:01:42]} Rd8 {[%emt 0:02:55]} 30. Ne1 {[%emt 0:02:44]} Nd6 {[%emt 0:02:43]} 31. Ng2 {[%emt 0:00:25]} Nf5 {[%emt 0:01:40]} 32. g4 {[%emt 0:02:56]} hxg4 {[%emt 0:00:26]} 33. hxg4 {[%emt 0:00:01]} Nfxd4 {[%emt 0:00:49]} 34. Bxd4 {[%emt 0:00:20]} Nxd4 {[%emt 0:00:04]} 35. Rc7+ {[%emt 0:00:02]} Ke6 {[%emt 0:00:37]} 36. Rxa7 {[%emt 0:00:06]} Nxb3 {[%emt 0:00:55]} 37. Ra6 {[%emt 0:02:36]} Rb8 {[%emt 0:08:29]} 38. Ne3 {[%emt 0:00:37]} Nc5 {[%emt 0:01:39]} 39. Ra7 {[%emt 0:00:05]} Rb7 {[%emt 0:00:09]} 40. Ra8 {[%emt 0:00:10]} d4 {[%emt 0:00:12]} 41. Nc4 {[%emt 0:03:05]} Kd5 {[%emt 0:00:54]} 42. Nd2 {[%emt 0:00:01]} d3 {[%emt 0:00:46]} 43. a5 {[%emt 0:00:55]} bxa5 {[%emt 0:01:56]} 44. Rxa5 {[%emt 0:00:01]} Kd4 {[%emt 0:00:05]} 45. Nf3+ {[%emt 0:00:56]} Kc4 {[%emt 0:00:02]} 46. Nd2+ {[%emt 0:00:14]} Kb4 {[%emt 0:00:06]} 47. Ra1 {[%emt 0:00:54]} Kc3 {[%emt 0:13:32]} 48. Ke1 {[%emt 0:00:00]} Re7+ {[%emt 0:02:53]} 49. Kd1 {[%emt 0:00:06]} Rh7 {[%emt 0:00:02]} 50. Rc1+ {[%emt 0:01:08]} Kd4 {[%emt 0:00:01]} 51. Nf3+ {[%emt 0:00:44]} Kd5 {[%emt 0:00:01]} 52. Rb1 {[%emt 0:00:33]} Rh1+ {[%emt 0:00:54]} 53. Ne1 {[%emt 0:01:02]} Ne4 {[%emt 0:00:06]} 0-1

[Event "Charlotte Open 2020"]
[Site "Charlotte"]
[Date "2020.01.05"]
[Round "8.3"]
[White "Brodsky, David"]
[Black "Tang, Andrew"]
[Result "0-1"]
[ECO "C60"]
[WhiteElo "2466"]
[BlackElo "2511"]
[Annotator "ChessBase"]
[PlyCount "60"]
[EventDate "2020.01.02"]
[EventType "swiss"]
[EventCountry "USA"]
[SourceTitle "playchess.com"]
[Source "ChessBase"]
[SourceQuality "1"]
[TimeControl "6000+30"]

1. e4 {[%emt 0:00:00]} e5 {[%emt 0:00:37]} 2. Nf3 {[%emt 0:00:00]} Nc6 {[%emt 0:00:07]} 3. Bb5 {[%emt 0:00:00]} g6 {[%emt 0:01:07]} 4. d4 {[%emt 0:00:00]} exd4 {[%emt 0:00:07]} 5. c3 {[%emt 0:00:03]} a6 {[%emt 0:00:09]} 6. Bc4 {[%emt 0:00:29]} Bg7 {[%emt 0:01:18]} 7. cxd4 {[%emt 0:00:13]} b5 {[%emt 0:00:05]} 8. Bb3 {[%emt 0:00:35]} Na5 {[%emt 0:00:14]} 9. Bc2 {[%emt 0:01:26]} Ne7 {[%emt 0:00:07]} 10. O-O {[%emt 0:04:51]} O-O {[%emt 0:00:39]} 11. Bg5 {[%emt 0:18:19]} h6 {[%emt 0:02:21]} 12. Bd2 {[%emt 0:01:03]} Nc4 {[%emt 0:02:46]} 13. Bc3 {[%emt 0:02:28]} d5 {[%emt 0:10:09]} 14. e5 {[%emt 0:07:06]} c5 {[%emt 0:09:24]} 15. dxc5 {[%emt 0:04:53]} Bg4 {[%emt 0:06:25]} 16. h3 {[%emt 0:24:26]} Bxf3 {[%emt 0:05:24]} 17. gxf3 {[%emt 0:00:23]} b4 {[%emt 0:06:01]} 18. Bd4 {[%emt 0:06:05]} Nc6 {[%emt 0:03:30]} 19. f4 {[%emt 0:01:59]} Qh4 {[%emt 0:02:08]} 20. Be3 {[%emt 0:02:48]} Nxe3 {[%emt 0:01:48]} 21. fxe3 {[%emt 0:00:04]} Qg3+ {[%emt 0:00:04]} 22. Kh1 {[%emt 0:00:03]} Qxh3+ {[%emt 0:00:05]} 23. Kg1 {[%emt 0:00:02]} Qxe3+ {[%emt 0:01:35]} 24. Rf2 {[%emt 0:00:51]} Nxe5 {[%emt 0:16:18]} 25. fxe5 {[%emt 0:01:04]} Bxe5 {[%emt 0:00:04]} 26. Qd2 {[%emt 0:06:22]} Qg3+ {[%emt 0:00:51]} 27. Rg2 {[%emt 0:03:01]} Qh4 {[%emt 0:00:39]} 28. Kf1 {[%emt 0:02:05]} Bxb2 {[%emt 0:02:03]} 29. Qxd5 {[%emt 0:00:35]} Bxa1 {[%emt 0:03:48]} 30. Rxg6+ {[%emt 0:01:48]} Kh8 {[%emt 0:00:14]} 0-1

[Event "Charlotte Open 2020"]
[Site "Charlotte"]
[Date "2020.01.05"]
[Round "8.4"]
[White "Escalante Ramirez, Brian Sebasti"]
[Black "Karthik Venkataraman"]
[Result "1/2-1/2"]
[ECO "B23"]
[WhiteElo "2421"]
[BlackElo "2470"]
[Annotator "ChessBase"]
[PlyCount "116"]
[EventDate "2020.01.02"]
[EventType "swiss"]
[EventCountry "USA"]
[SourceTitle "playchess.com"]
[Source "ChessBase"]
[SourceQuality "1"]
[TimeControl "6000+30"]

1. e4 {[%emt 0:00:00]} c5 {[%emt 0:00:00]} 2. Nc3 {[%emt 0:00:00]} a6 {[%emt 0:00:00]} 3. g3 {[%emt 0:02:41]} b5 {[%emt 0:00:06]} 4. Bg2 {[%emt 0:00:03]} Bb7 {[%emt 0:00:03]} 5. Nh3 {[%emt 0:01:31]} Nf6 {[%emt 0:01:09]} 6. O-O {[%emt 0:01:27]} e6 {[%emt 0:00:38]} 7. d3 {[%emt 0:02:12]} b4 {[%emt 0:01:56]} 8. Na4 {[%emt 0:18:25]} Be7 {[%emt 0:02:24]} 9. a3 {[%emt 0:02:15]} a5 {[%emt 0:00:51]} 10. Nf4 {[%emt 0:08:38]} Qc7 {[%emt 0:05:37]} 11. e5 {[%emt 0:28:43]} Bxg2 {[%emt 0:03:05]} 12. exf6 {[%emt 0:00:02]} Bxf1 {[%emt 0:00:50]} 13. fxe7 {[%emt 0:02:11]} Qc6 {[%emt 0:00:06]} 14. Qg4 {[%emt 0:00:57]} g6 {[%emt 0:09:43]} 15. Qg5 {[%emt 0:11:43]} e5 {[%emt 0:00:54]} 16. Qxe5 {[%emt 0:00:44]} f6 {[%emt 0:15:25]} 17. Qxc5 {[%emt 0:00:02]} g5 {[%emt 0:02:31]} 18. Nd5 {[%emt 0:01:33]} Bh3 {[%emt 0:00:11]} 19. Nc7+ {[%emt 0:10:30]} Kf7 {[%emt 0:00:04]} 20. Qxc6 {[%emt 0:00:05]} Nxc6 {[%emt 0:00:03]} 21. Nxa8 {[%emt 0:00:15]} Rxa8 {[%emt 0:00:05]} 22. Be3 {[%emt 0:00:46]} Kxe7 {[%emt 0:01:31]} 23. Nb6 {[%emt 0:00:41]} Rb8 {[%emt 0:01:02]} 24. axb4 {[%emt 0:03:36]} axb4 {[%emt 0:00:06]} 25. f4 {[%emt 0:01:46]} Kf7 {[%emt 0:01:21]} 26. fxg5 {[%emt 0:04:51]} fxg5 {[%emt 0:00:06]} 27. Nc4 {[%emt 0:02:39]} Kg6 {[%emt 0:03:34]} 28. Ra6 {[%emt 0:01:49]} Rf8 {[%emt 0:00:10]} 29. Nd2 {[%emt 0:01:17]} Kh5 {[%emt 0:00:14]} 30. Ra1 {[%emt 0:01:09]} d5 {[%emt 0:04:19]} 31. Re1 {[%emt 0:00:06]} Re8 {[%emt 0:04:48]} 32. Nf3 {[%emt 0:00:05]} h6 {[%emt 0:00:04]} 33. Bf2 {[%emt 0:00:32]} Rf8 {[%emt 0:01:06]} 34. Ne5 {[%emt 0:00:15]} Nxe5 {[%emt 0:00:35]} 35. Rxe5 {[%emt 0:00:01]} Rc8 {[%emt 0:00:05]} 36. Re2 {[%emt 0:00:30]} Rf8 {[%emt 0:00:57]} 37. b3 {[%emt 0:00:23]} d4 {[%emt 0:04:20]} 38. Rd2 {[%emt 0:02:31]} Rf7 {[%emt 0:00:26]} 39. Re2 {[%emt 0:01:38]} Rf8 {[%emt 0:00:10]} 40. Rd2 {[%emt 0:00:03]} Rf7 {[%emt 0:00:56]} 41. Rd1 {[%emt 0:00:27]} Rc7 {[%emt 0:00:11]} 42. Rc1 {[%emt 0:00:04]} Bf5 {[%emt 0:00:31]} 43. Bxd4 {[%emt 0:00:15]} Bxd3 {[%emt 0:00:04]} 44. c4 {[%emt 0:01:20]} bxc3 {[%emt 0:00:06]} 45. Rxc3 {[%emt 0:00:03]} Rxc3 {[%emt 0:00:04]} 46. Bxc3 {[%emt 0:00:04]} Kg4 {[%emt 0:00:27]} 47. Kf2 {[%emt 0:00:51]} Kh3 {[%emt 0:00:21]} 48. Bg7 {[%emt 0:00:21]} h5 {[%emt 0:01:13]} 49. Bf6 {[%emt 0:00:17]} Kg4 {[%emt 0:00:07]} 50. Ke3 {[%emt 0:00:12]} Bc2 {[%emt 0:03:41]} 51. b4 {[%emt 0:00:05]} Kf5 {[%emt 0:00:02]} 52. b5 {[%emt 0:01:38]} Ba4 {[%emt 0:00:04]} 53. b6 {[%emt 0:00:05]} Bc6 {[%emt 0:00:03]} 54. Bd8 {[%emt 0:01:43]} g4 {[%emt 0:00:05]} 55. Bc7 {[%emt 0:00:25]} Bb7 {[%emt 0:00:07]} 56. Bb8 {[%emt 0:00:05]} Bc6 {[%emt 0:00:04]} 57. Kd4 {[%emt 0:00:13]} Ke6 {[%emt 0:00:05]} 58. Kc5 {[%emt 0:00:53]} Kd7 {[%emt 0:00:05]} 1/2-1/2

[Event "Charlotte Open 2020"]
[Site "Charlotte"]
[Date "2020.01.05"]
[Round "8.5"]
[White "Bajarani, Ulvi"]
[Black "Sarkar, Justin"]
[Result "1-0"]
[ECO "D80"]
[WhiteElo "2468"]
[BlackElo "2385"]
[Annotator "ChessBase"]
[PlyCount "105"]
[EventDate "2020.01.02"]
[EventType "swiss"]
[EventCountry "USA"]
[SourceTitle "playchess.com"]
[Source "ChessBase"]
[SourceQuality "1"]
[TimeControl "6000+30"]

1. d4 {[%emt 0:00:00]} Nf6 {[%emt 0:23:03]} 2. c4 {[%emt 0:00:00]} g6 {[%emt 0:00:52]} 3. Nc3 {[%emt 0:00:03]} d5 {[%emt 0:00:18]} 4. Bg5 {[%emt 0:00:07]} Ne4 {[%emt 0:01:12]} 5. Bh4 {[%emt 0:00:08]} c6 {[%emt 0:03:49]} 6. e3 {[%emt 0:08:06]} Qa5 {[%emt 0:00:12]} 7. cxd5 {[%emt 0:03:56]} Nxc3 {[%emt 0:00:37]} 8. Qd2 {[%emt 0:00:06]} e6 {[%emt 0:04:19]} 9. bxc3 {[%emt 0:00:24]} cxd5 {[%emt 0:00:35]} 10. Rb1 {[%emt 0:01:58]} Nc6 {[%emt 0:11:58]} 11. Bf6 {[%emt 0:01:26]} Rg8 {[%emt 0:00:08]} 12. Bd3 {[%emt 0:04:01]} b6 {[%emt 0:05:34]} 13. a4 {[%emt 0:18:14]} Ba6 {[%emt 0:03:48]} 14. Bb5 {[%emt 0:00:11]} Bxb5 {[%emt 0:00:59]} 15. axb5 {[%emt 0:00:05]} Be7 {[%emt 0:04:19]} 16. Bxe7 {[%emt 0:01:15]} Nxe7 {[%emt 0:00:06]} 17. Qb2 {[%emt 0:00:21]} Qa4 {[%emt 0:01:51]} 18. Nf3 {[%emt 0:02:26]} Qc4 {[%emt 0:01:03]} 19. Qb4 {[%emt 0:06:58]} Qxb4 {[%emt 0:05:08]} 20. Rxb4 {[%emt 0:00:18]} f6 {[%emt 0:00:51]} 21. Ke2 {[%emt 0:02:45]} Kd7 {[%emt 0:00:25]} 22. g4 {[%emt 0:04:11]} g5 {[%emt 0:02:16]} 23. h4 {[%emt 0:00:58]} h5 {[%emt 0:02:24]} 24. gxh5 {[%emt 0:00:57]} g4 {[%emt 0:00:24]} 25. Nd2 {[%emt 0:08:22]} g3 {[%emt 0:04:07]} 26. Ra4 {[%emt 0:08:33]} g2 {[%emt 0:04:56]} 27. Rg1 {[%emt 0:00:07]} Nf5 {[%emt 0:00:17]} 28. c4 {[%emt 0:05:20]} Nd6 {[%emt 0:05:30]} 29. Kf3 {[%emt 0:01:52]} dxc4 {[%emt 0:02:48]} 30. Nxc4 {[%emt 0:00:06]} Nxb5 {[%emt 0:00:18]} 31. Rxg2 {[%emt 0:04:06]} Rxg2 {[%emt 0:00:08]} 32. Kxg2 {[%emt 0:00:10]} Rh8 {[%emt 0:00:08]} 33. Na3 {[%emt 0:00:28]} Nxa3 {[%emt 0:01:56]} 34. Rxa7+ {[%emt 0:00:05]} Kc6 {[%emt 0:00:57]} 35. Rxa3 {[%emt 0:00:09]} Rxh5 {[%emt 0:00:02]} 36. Kg3 {[%emt 0:00:24]} b5 {[%emt 0:01:18]} 37. Ra6+ {[%emt 0:08:48]} Kb7 {[%emt 0:02:36]} 38. Ra1 {[%emt 0:02:40]} f5 {[%emt 0:05:48]} 39. f3 {[%emt 0:00:50]} Kb6 {[%emt 0:00:50]} 40. Rb1 {[%emt 0:01:15]} Ka5 {[%emt 0:01:37]} 41. e4 {[%emt 0:00:05]} fxe4 {[%emt 0:05:12]} 42. fxe4 {[%emt 0:00:07]} b4 {[%emt 0:00:04]} 43. Kg4 {[%emt 0:00:52]} Rh8 {[%emt 0:00:05]} 44. Kg5 {[%emt 0:01:47]} Kb5 {[%emt 0:00:56]} 45. h5 {[%emt 0:01:11]} Rg8+ {[%emt 0:03:58]} 46. Kf6 {[%emt 0:00:18]} Rg4 {[%emt 0:00:20]} 47. e5 {[%emt 0:05:12]} Rh4 {[%emt 0:02:50]} 48. Kxe6 {[%emt 0:00:23]} Rxh5 {[%emt 0:00:16]} 49. Rc1 {[%emt 0:01:21]} b3 {[%emt 0:00:26]} 50. Kd6 {[%emt 0:01:44]} Rh2 {[%emt 0:00:53]} 51. e6 {[%emt 0:00:43]} b2 {[%emt 0:00:32]} 52. Rb1 {[%emt 0:00:12]} Rd2 {[%emt 0:00:25]} 53. e7 {[%emt 0:00:41]} 1-0